[Event "I Torneo de Maestras 2019"]
[Site "Corralejo"]
[Date "2019.09.26"]
[Round "8.1"]
[White "Palma, Maria"]
[Black "Rodriguez Redondo, Adhara"]
[Result "0-1"]
[ECO "D37"]
[WhiteElo "2100"]
[BlackElo "2065"]
[Annotator "ChessBase"]
[PlyCount "130"]
[EventDate "2019.09.21"]
[EventType "tourn"]
[EventCountry "ESP"]
[SourceTitle "playchess.com"]
[Source "ChessBase"]
[SourceQuality "1"]
[TimeControl "5400+30"]

1. d4 {[%emt 0:00:00]} d5 {[%emt 0:00:00]} 2. c4 {[%emt 0:00:00]} e6 {[%emt 0:00:00]} 3. Nc3 {[%emt 0:00:00]} Be7 {[%emt 0:00:00]} 4. Nf3 {[%emt 0:00:00]} Nf6 {[%emt 0:00:18]} 5. Bf4 {[%emt 0:00:00]} O-O {[%emt 0:01:49]} 6. e3 {[%emt 0:00:02]} b6 {[%emt 0:00:49]} 7. Rc1 {[%emt 0:00:32]} Bb7 {[%emt 0:04:49]} 8. cxd5 {[%emt 0:00:45]} Nxd5 {[%emt 0:02:55]} 9. Nxd5 {[%emt 0:04:24]} Qxd5 {[%emt 0:00:18]} 10. a3 {[%emt 0:08:15]} Bd6 {[%emt 0:12:34]} 11. Bxd6 {[%emt 0:07:41]} cxd6 {[%emt 0:01:36]} 12. Bd3 {[%emt 0:07:37]} Nd7 {[%emt 0:05:40]} 13. O-O {[%emt 0:02:39]} Nf6 {[%emt 0:02:48]} 14. Re1 {[%emt 0:05:14]} Ne4 {[%emt 0:05:22]} 15. Bc4 {[%emt 0:20:03]} Qf5 {[%emt 0:04:20]} 16. d5 {[%emt 0:04:52]} exd5 {[%emt 0:04:04]} 17. Ba2 {[%emt 0:07:10]} Rac8 {[%emt 0:04:15]} 18. Qd3 {[%emt 0:02:55]} Qh5 {[%emt 0:04:14]} 19. Nd4 {[%emt 0:03:25]} g6 {[%emt 0:07:36]} 20. f3 {[%emt 0:02:44]} Nc5 {[%emt 0:02:01]} 21. Qd2 {[%emt 0:00:30]} a6 {[%emt 0:03:35]} 22. b4 {[%emt 0:04:11]} Ne6 {[%emt 0:04:27]} 23. Ne2 {[%emt 0:10:44]} Qg5 {[%emt 0:08:10]} 24. f4 {[%emt 0:00:51]} Qe7 {[%emt 0:02:09]} 25. Bxd5 {[%emt 0:00:38]} Rxc1 {[%emt 0:01:47]} 26. Nxc1 {[%emt 0:01:30]} Bxd5 {[%emt 0:00:16]} 27. Qxd5 {[%emt 0:00:01]} Nxf4 {[%emt 0:03:25]} 28. Qd4 {[%emt 0:01:05]} Nh5 {[%emt 0:01:18]} 29. Qxb6 {[%emt 0:00:36]} Rc8 {[%emt 0:00:36]} 30. Qd4 {[%emt 0:00:52]} Qe6 {[%emt 0:01:10]} 31. Qd2 {[%emt 0:05:10]} Nf6 {[%emt 0:01:32]} 32. Ne2 {[%emt 0:00:23]} Ne4 {[%emt 0:03:14]} 33. Qd3 {[%emt 0:00:15]} Qe5 {[%emt 0:05:30]} 34. Rc1 {[%emt 0:00:43]} Rxc1+ {[%emt 0:01:31]} 35. Nxc1 {[%emt 0:00:01]} Qb2 {[%emt 0:00:49]} 36. Qxe4 {[%emt 0:01:06]} Qxc1+ {[%emt 0:00:05]} 37. Kf2 {[%emt 0:00:06]} Qxa3 {[%emt 0:00:18]} 38. Qb7 {[%emt 0:01:13]} Kg7 {[%emt 0:00:54]} 39. Qe4 {[%emt 0:00:15]} Qb2+ {[%emt 0:00:31]} 40. Kf3 {[%emt 0:00:28]} Qf6+ {[%emt 0:01:11]} 41. Ke2 {[%emt 0:00:09]} Qb2+ {[%emt 0:00:59]} 42. Kf3 {[%emt 0:00:06]} Qa1 {[%emt 0:01:14]} 43. Qd3 {[%emt 0:00:21]} Qf6+ {[%emt 0:00:24]} 44. Ke2 {[%emt 0:00:14]} Qb2+ {[%emt 0:00:14]} 45. Kf3 {[%emt 0:00:19]} Qxb4 {[%emt 0:00:24]} 46. Qxa6 {[%emt 0:00:02]} Qc5 {[%emt 0:00:56]} 47. Qa1+ {[%emt 0:00:41]} Qe5 {[%emt 0:00:10]} 48. Qa4 {[%emt 0:01:33]} Qxh2 {[%emt 0:00:42]} 49. Kf2 {[%emt 0:00:36]} Qe5 {[%emt 0:00:16]} 50. Qb4 {[%emt 0:00:13]} h5 {[%emt 0:00:43]} 51. Qc4 {[%emt 0:00:28]} h4 {[%emt 0:00:55]} 52. Ke2 {[%emt 0:00:19]} Qh5+ {[%emt 0:00:31]} 53. Kf2 {[%emt 0:00:21]} Qe5 {[%emt 0:00:13]} 54. Ke2 {[%emt 0:00:06]} Qg3 {[%emt 0:00:35]} 55. Qd4+ {[%emt 0:00:14]} Kg8 {[%emt 0:00:28]} 56. Qe4 {[%emt 0:00:12]} h3 {[%emt 0:00:37]} 57. gxh3 {[%emt 0:00:28]} Qxh3 {[%emt 0:00:11]} 58. Qa8+ {[%emt 0:00:19]} Kh7 {[%emt 0:00:32]} 59. Qf8 {[%emt 0:01:36]} Qe6 {[%emt 0:00:21]} 60. Qd8 {[%emt 0:00:02]} d5 {[%emt 0:00:53]} 61. Qh4+ {[%emt 0:00:14]} Kg7 {[%emt 0:00:08]} 62. Qd4+ {[%emt 0:00:07]} Kg8 {[%emt 0:00:13]} 63. Qb4 {[%emt 0:00:24]} Qe4 {[%emt 0:00:33]} 64. Qb8+ {[%emt 0:00:18]} Kg7 {[%emt 0:00:08]} 65. Qb2+ {[%emt 0:00:12]} d4 {[%emt 0:00:13]} 0-1

[Event "I Torneo de Maestras 2019"]
[Site "Corralejo"]
[Date "2019.09.26"]
[Round "8.2"]
[White "Thomas, Anysia"]
[Black "Martinez, Ayelen"]
[Result "1/2-1/2"]
[ECO "E90"]
[WhiteElo "2112"]
[BlackElo "2169"]
[Annotator "ChessBase"]
[PlyCount "120"]
[EventDate "2019.09.21"]
[EventType "tourn"]
[EventCountry "ESP"]
[SourceTitle "playchess.com"]
[Source "ChessBase"]
[SourceQuality "1"]
[TimeControl "5400+30"]

1. d4 {[%emt 0:00:00]} Nf6 {[%emt 0:04:53]} 2. c4 {[%emt 0:00:00]} g6 {[%emt 0:00:05]} 3. Nc3 {[%emt 0:00:00]} Bg7 {[%emt 0:00:04]} 4. e4 {[%emt 0:00:00]} d6 {[%emt 0:00:03]} 5. h3 {[%emt 0:00:00]} O-O {[%emt 0:00:21]} 6. Nf3 {[%emt 0:00:00]} e5 {[%emt 0:01:13]} 7. d5 {[%emt 0:00:09]} a5 {[%emt 0:00:06]} 8. g4 {[%emt 0:00:17]} Na6 {[%emt 0:00:05]} 9. Be3 {[%emt 0:00:06]} Nd7 {[%emt 0:00:08]} 10. h4 {[%emt 0:06:08]} Ndc5 {[%emt 0:00:10]} 11. Rg1 {[%emt 0:00:44]} Kh8 {[%emt 0:03:16]} 12. h5 {[%emt 0:06:33]} f5 {[%emt 0:05:45]} 13. hxg6 {[%emt 0:04:02]} fxg4 {[%emt 0:08:29]} 14. Ng5 {[%emt 0:01:55]} h6 {[%emt 0:01:19]} 15. Nf7+ {[%emt 0:00:36]} Rxf7 {[%emt 0:00:01]} 16. gxf7 {[%emt 0:00:08]} Qf6 {[%emt 0:00:14]} 17. Qd2 {[%emt 0:04:23]} h5 {[%emt 0:04:33]} 18. Rh1 {[%emt 0:04:46]} Qxf7 {[%emt 0:00:07]} 19. Bh6 {[%emt 0:01:09]} Qg6 {[%emt 0:00:09]} 20. Qg5 {[%emt 0:03:09]} Qxg5 {[%emt 0:00:35]} 21. Bxg5 {[%emt 0:00:02]} Kh7 {[%emt 0:00:06]} 22. O-O-O {[%emt 0:02:33]} Bd7 {[%emt 0:01:41]} 23. Be2 {[%emt 0:00:40]} Kg6 {[%emt 0:00:16]} 24. Be3 {[%emt 0:00:11]} Bh6 {[%emt 0:05:48]} 25. Bxh6 {[%emt 0:05:40]} Kxh6 {[%emt 0:02:13]} 26. f3 {[%emt 0:02:16]} g3 {[%emt 0:00:27]} 27. f4 {[%emt 0:12:05]} exf4 {[%emt 0:01:03]} 28. Rxh5+ {[%emt 0:00:04]} Kg6 {[%emt 0:00:36]} 29. Rdh1 {[%emt 0:03:07]} Rg8 {[%emt 0:14:24]} 30. Kd2 {[%emt 0:05:43]} Kf6 {[%emt 0:03:33]} 31. Bf3 {[%emt 0:06:52]} Nb4 {[%emt 0:07:02]} 32. b3 {[%emt 0:08:10]} Bg4 {[%emt 0:09:58]} 33. R5h4 {[%emt 0:04:52]} Bxf3 {[%emt 0:08:14]} 34. Rxf4+ {[%emt 0:00:06]} Ke5 {[%emt 0:00:30]} 35. Rxf3 {[%emt 0:00:05]} Nxe4+ {[%emt 0:00:07]} 36. Nxe4 {[%emt 0:00:09]} Kxe4 {[%emt 0:00:06]} 37. Re3+ {[%emt 0:00:46]} Kd4 {[%emt 0:03:10]} 38. Rg1 {[%emt 0:06:55]} g2 {[%emt 0:04:55]} 39. Re2 {[%emt 0:02:21]} Nxa2 {[%emt 0:06:12]} 40. Rexg2 {[%emt 0:00:04]} Rxg2+ {[%emt 0:01:08]} 41. Rxg2 {[%emt 0:00:05]} Nb4 {[%emt 0:00:22]} 42. Rg7 {[%emt 0:05:04]} Na6 {[%emt 0:00:22]} 43. Rg1 {[%emt 0:01:09]} Kc5 {[%emt 0:06:51]} 44. Kc3 {[%emt 0:00:14]} Kb6 {[%emt 0:00:05]} 45. Ra1 {[%emt 0:01:26]} Nb4 {[%emt 0:00:32]} 46. Rh1 {[%emt 0:01:16]} Kc5 {[%emt 0:00:05]} 47. Rh2 {[%emt 0:00:37]} Kb6 {[%emt 0:01:27]} 48. Kd4 {[%emt 0:00:26]} Na6 {[%emt 0:00:04]} 49. Rh6 {[%emt 0:01:01]} Nc5 {[%emt 0:00:05]} 50. Kc3 {[%emt 0:01:25]} Na6 {[%emt 0:00:04]} 51. Rh1 {[%emt 0:00:17]} Nb4 {[%emt 0:00:06]} 52. Rh2 {[%emt 0:00:50]} Kc5 {[%emt 0:00:08]} 53. Rh7 {[%emt 0:01:00]} Na6 {[%emt 0:00:06]} 54. Rg7 {[%emt 0:00:37]} Kb6 {[%emt 0:00:05]} 55. Rg2 {[%emt 0:01:17]} Nb4 {[%emt 0:00:38]} 56. Kd4 {[%emt 0:00:32]} Na6 {[%emt 0:00:05]} 57. Rg6 {[%emt 0:01:04]} Nc5 {[%emt 0:00:54]} 58. Kc3 {[%emt 0:00:26]} Na6 {[%emt 0:00:03]} 59. Rg4 {[%emt 0:00:22]} Kc5 {[%emt 0:00:26]} 60. Rg7 {[%emt 0:00:42]} Kb6 {[%emt 0:00:05]} 1/2-1/2

[Event "I Torneo de Maestras 2019"]
[Site "Corralejo"]
[Date "2019.09.26"]
[Round "8.3"]
[White "Drljevic, Ljilja"]
[Black "Terbe, Julianna"]
[Result "0-1"]
[ECO "B30"]
[WhiteElo "2162"]
[BlackElo "2298"]
[Annotator "ChessBase"]
[PlyCount "82"]
[EventDate "2019.09.21"]
[EventType "tourn"]
[EventCountry "ESP"]
[SourceTitle "playchess.com"]
[Source "ChessBase"]
[SourceQuality "1"]
[TimeControl "5400+30"]

1. e4 {[%emt 0:05:20]} c5 {[%emt 0:00:00]} 2. Nf3 {[%emt 0:00:11]} Nc6 {[%emt 0:00:00]} 3. Bb5 {[%emt 0:00:13]} Qc7 {[%emt 0:02:14]} 4. Nc3 {[%emt 0:04:14]} a6 {[%emt 0:00:23]} 5. Bxc6 {[%emt 0:00:14]} dxc6 {[%emt 0:00:05]} 6. h3 {[%emt 0:02:12]} e5 {[%emt 0:00:15]} 7. d3 {[%emt 0:00:25]} Ne7 {[%emt 0:00:05]} 8. Be3 {[%emt 0:22:15]} Ng6 {[%emt 0:00:07]} 9. Ne2 {[%emt 0:00:28]} Be7 {[%emt 0:01:52]} 10. Qd2 {[%emt 0:01:36]} f6 {[%emt 0:01:03]} 11. O-O {[%emt 0:12:45]} Be6 {[%emt 0:00:39]} 12. c3 {[%emt 0:08:36]} Rd8 {[%emt 0:04:29]} 13. b4 {[%emt 0:08:46]} cxb4 {[%emt 0:15:15]} 14. cxb4 {[%emt 0:00:05]} Bc4 {[%emt 0:00:17]} 15. Ne1 {[%emt 0:07:17]} O-O {[%emt 0:10:21]} 16. Rc1 {[%emt 0:16:06]} Bf7 {[%emt 0:06:11]} 17. a4 {[%emt 0:01:04]} Rd7 {[%emt 0:06:38]} 18. Qc3 Qd6 {[%emt 0:00:51]} 19. Bc5 {[%emt 0:04:01]} Qe6 {[%emt 0:00:04]} 20. a5 {[%emt 0:03:52]} Rfd8 {[%emt 0:03:09]} 21. Bb6 {[%emt 0:00:06]} Re8 {[%emt 0:00:20]} 22. Rb1 {[%emt 0:06:08]} Bd8 {[%emt 0:06:19]} 23. Bc5 {[%emt 0:00:00]} Bc7 {[%emt 0:00:32]} 24. Nf3 {[%emt 0:00:00]} Red8 {[%emt 0:00:44]} 25. Rfd1 {[%emt 0:00:00]} Nf8 {[%emt 0:04:52]} 26. Ng3 {[%emt 0:00:00]} Qe8 {[%emt 0:01:03]} 27. Nf5 {[%emt 0:00:00]} Ne6 {[%emt 0:00:34]} 28. Be3 {[%emt 0:00:00]} Nd4 {[%emt 0:06:27]} 29. Bxd4 {[%emt 0:00:00]} exd4 {[%emt 0:03:40]} 30. Qc5 {[%emt 0:00:00]} Bh5 {[%emt 0:08:19]} 31. g4 {[%emt 0:00:00]} Bf7 {[%emt 0:00:06]} 32. N3xd4 {[%emt 0:00:00]} g6 {[%emt 0:02:37]} 33. Nh6+ {[%emt 0:00:00]} Kg7 {[%emt 0:00:01]} 34. Nxf7 {[%emt 0:00:08]} Qxf7 {[%emt 0:00:01]} 35. Nf3 {[%emt 0:00:44]} Rxd3 {[%emt 0:00:09]} 36. Rxd3 {[%emt 0:00:16]} Rxd3 {[%emt 0:00:05]} 37. Kg2 {[%emt 0:00:09]} Qe6 {[%emt 0:05:33]} 38. Re1 {[%emt 0:00:44]} Qd6 {[%emt 0:06:21]} 39. Qc4 {[%emt 0:00:50]} Ra3 {[%emt 0:01:33]} 40. Re3 {[%emt 0:00:43]} Rxe3 {[%emt 0:00:34]} 41. e5 {[%emt 0:00:29]} Rxe5 {[%emt 0:00:30]} 0-1

[Event "I Torneo de Maestras 2019"]
[Site "Corralejo"]
[Date "2019.09.26"]
[Round "8.4"]
[White "Sosa Suarez, Carla Cristina"]
[Black "Safranska, Anda"]
[Result "1/2-1/2"]
[ECO "B06"]
[WhiteElo "2069"]
[BlackElo "2139"]
[Annotator "NA"]
[PlyCount "51"]
[EventDate "2019.09.21"]
[EventType "tourn"]
[EventCountry "ESP"]
[SourceTitle "playchess.com"]
[Source "ChessBase"]
[SourceQuality "1"]
[TimeControl "5400+30"]

1. e4 {[%emt 0:00:00]} g6 {[%emt 0:00:00]} 2. d4 {[%emt 0:00:00]} Bg7 {[%emt 0:00:00]} 3. Nc3 {[%emt 0:00:00]} a6 {[%emt 0:00:00]} 4. f4 {[%emt 0:00:35]} b5 {[%emt 0:00:00]} 5. Nf3 {[%emt 0:02:25]} d6 {[%emt 0:00:32]} 6. Bd3 {[%emt 0:01:25]} Bb7 {[%emt 0:00:08]} 7. Qe2 {[%emt 0:01:05]} e6 {[%emt 0:07:44]} 8. a4 {[%emt 0:05:30]} b4 {[%emt 0:00:08]} 9. Nd1 {[%emt 0:00:14]} Nd7 {[%emt 0:03:17]} 10. e5 {[%emt 0:10:06]} Ne7 {[%emt 0:00:43]} 11. Nf2 {[%emt 0:05:28]} a5 {[%emt 0:06:44]} 12. Ne4 {[%emt 0:08:46]} Qb8 {[%emt 0:07:13]} 13. O-O {[%emt 0:03:53]} O-O {[%emt 0:25:37]} 14. Bd2 {[%emt 0:13:50]} Nb6 {[%emt 0:06:38]} 15. g4 {[%emt 0:04:28]} Rd8 {[%emt 0:22:13]} 16. Nf6+ {[%emt 0:04:26]} Bxf6 {[%emt 0:00:43]} 17. exf6 {[%emt 0:00:04]} Ned5 {[%emt 0:00:54]} 18. f5 {[%emt 0:02:44]} exf5 {[%emt 0:01:03]} 19. gxf5 {[%emt 0:01:04]} Re8 {[%emt 0:00:15]} 20. Qf2 {[%emt 0:02:47]} Nxf6 {[%emt 0:01:18]} 21. fxg6 {[%emt 0:01:57]} fxg6 {[%emt 0:00:09]} 22. Ng5 {[%emt 0:07:14]} Rf8 {[%emt 0:02:41]} 23. Ne6 {[%emt 0:03:22]} Rf7 {[%emt 0:00:05]} 24. Ng5 {[%emt 0:01:21]} Rf8 {[%emt 0:00:04]} 25. Ne6 {[%emt 0:01:29]} Rf7 {[%emt 0:00:02]} 26. Ng5 {[%emt 0:02:01]} 1/2-1/2

[Event "I Torneo de Maestras 2019"]
[Site "Corralejo"]
[Date "2019.09.26"]
[Round "8.5"]
[White "Navrotescu, Andreea-Cristiana"]
[Black "Guillo Longares, Cecilia"]
[Result "1-0"]
[ECO "A65"]
[WhiteElo "2242"]
[BlackElo "1960"]
[Annotator "NA"]
[PlyCount "61"]
[EventDate "2019.09.21"]
[EventType "tourn"]
[EventCountry "ESP"]
[SourceTitle "playchess.com"]
[Source "ChessBase"]
[SourceQuality "1"]
[TimeControl "5400+30"]

1. d4 {[%emt 0:00:00]} Nf6 {[%emt 0:00:00]} 2. c4 {[%emt 0:00:00]} c5 {[%emt 0:00:00]} 3. d5 {[%emt 0:00:00]} e6 {[%emt 0:00:00]} 4. Nc3 {[%emt 0:00:00]} exd5 {[%emt 0:00:00]} 5. cxd5 {[%emt 0:00:00]} d6 {[%emt 0:00:00]} 6. e4 {[%emt 0:00:04]} g6 {[%emt 0:00:11]} 7. Nge2 {[%emt 0:00:05]} Bg7 {[%emt 0:00:31]} 8. Ng3 {[%emt 0:00:06]} a6 {[%emt 0:00:08]} 9. a4 {[%emt 0:00:12]} O-O {[%emt 0:00:32]} 10. Be2 {[%emt 0:00:14]} Nbd7 {[%emt 0:00:42]} 11. O-O {[%emt 0:00:25]} Re8 {[%emt 0:01:42]} 12. Bg5 {[%emt 0:01:06]} Qc7 {[%emt 0:00:30]} 13. Qd2 {[%emt 0:05:54]} Rb8 {[%emt 0:01:08]} 14. f4 {[%emt 0:01:45]} h6 {[%emt 0:02:00]} 15. Bh4 {[%emt 0:00:07]} Nh7 {[%emt 0:00:58]} 16. e5 {[%emt 0:04:40]} dxe5 {[%emt 0:02:48]} 17. d6 {[%emt 0:00:55]} Qa5 {[%emt 0:00:14]} 18. Be7 {[%emt 0:08:32]} Qb4 {[%emt 0:15:13]} 19. f5 {[%emt 0:05:15]} g5 {[%emt 0:09:46]} 20. Qc2 {[%emt 0:11:10]} Bf6 {[%emt 0:08:37]} 21. Rad1 {[%emt 0:04:15]} Bxe7 {[%emt 0:03:59]} 22. Nd5 {[%emt 0:01:28]} Qa5 {[%emt 0:00:32]} 23. Nxe7+ {[%emt 0:00:30]} Kf8 {[%emt 0:01:19]} 24. f6 {[%emt 0:01:23]} Nhxf6 {[%emt 0:00:56]} 25. Nh5 {[%emt 0:00:49]} Rxe7 {[%emt 0:00:54]} 26. dxe7+ {[%emt 0:00:25]} Kxe7 {[%emt 0:00:07]} 27. Qf5 {[%emt 0:01:40]} Nxh5 {[%emt 0:04:22]} 28. Qxf7+ {[%emt 0:00:18]} Kd8 {[%emt 0:00:04]} 29. Qf8+ {[%emt 0:00:16]} Kc7 {[%emt 0:00:06]} 30. Qd6+ {[%emt 0:00:06]} Kd8 {[%emt 0:00:17]} 31. Rf8# {[%emt 0:00:07]} 1-0

[Event "I Torneo de Maestras 2019"]
[Site "Corralejo"]
[Date "2019.09.27"]
[Round "9.1"]
[White "Guillo Longares, Cecilia"]
[Black "Palma, Maria"]
[Result "1/2-1/2"]
[ECO "D32"]
[WhiteElo "1960"]
[BlackElo "2100"]
[Annotator "NA"]
[PlyCount "111"]
[EventDate "2019.09.21"]
[EventType "tourn"]
[EventCountry "ESP"]
[SourceTitle "playchess.com"]
[Source "ChessBase"]
[SourceQuality "1"]
[TimeControl "5400+30"]

1. d4 {[%emt 0:00:00]} d5 {[%emt 0:00:00]} 2. c4 {[%emt 0:00:00]} e6 {[%emt 0:00:00]} 3. Nc3 {[%emt 0:00:00]} c5 {[%emt 0:00:00]} 4. cxd5 {[%emt 0:00:00]} cxd4 {[%emt 0:00:00]} 5. Qa4+ {[%emt 0:00:00]} Bd7 {[%emt 0:00:00]} 6. Qxd4 {[%emt 0:00:06]} exd5 {[%emt 0:00:00]} 7. Qxd5 {[%emt 0:00:09]} Nc6 {[%emt 0:00:06]} 8. Nf3 {[%emt 0:00:17]} Nf6 {[%emt 0:02:03]} 9. Qd1 {[%emt 0:00:06]} Bc5 {[%emt 0:00:57]} 10. e3 {[%emt 0:00:09]} Qe7 {[%emt 0:00:31]} 11. Be2 {[%emt 0:00:14]} O-O-O {[%emt 0:04:22]} 12. O-O {[%emt 0:00:07]} g5 {[%emt 0:00:12]} 13. b4 {[%emt 0:00:17]} Bxb4 {[%emt 0:08:36]} 14. Bb2 {[%emt 0:00:26]} Rhg8 {[%emt 0:04:47]} 15. Nd4 {[%emt 0:07:22]} g4 {[%emt 0:02:47]} 16. Ncb5 {[%emt 0:01:44]} Kb8 {[%emt 0:04:21]} 17. Qa4 {[%emt 0:19:02]} a6 {[%emt 0:20:43]} 18. Nxc6+ {[%emt 0:00:25]} Bxc6 {[%emt 0:00:23]} 19. Bxf6 {[%emt 0:00:15]} Qe4 {[%emt 0:03:30]} 20. Be5+ {[%emt 0:00:06]} Qxe5 {[%emt 0:01:01]} 21. Qxb4 {[%emt 0:00:11]} axb5 {[%emt 0:01:21]} 22. Rfd1 {[%emt 0:03:13]} h5 {[%emt 0:04:43]} 23. Qf4 {[%emt 0:15:16]} Qxf4 {[%emt 0:01:34]} 24. exf4 {[%emt 0:00:10]} Kc7 {[%emt 0:00:34]} 25. Rab1 {[%emt 0:07:53]} Rxd1+ {[%emt 0:03:29]} 26. Rxd1 {[%emt 0:00:10]} Ra8 {[%emt 0:00:23]} 27. Rd2 {[%emt 0:00:51]} Ra4 {[%emt 0:00:37]} 28. g3 {[%emt 0:02:41]} Kb6 {[%emt 0:06:00]} 29. h3 {[%emt 0:01:20]} f5 {[%emt 0:02:23]} 30. hxg4 {[%emt 0:00:10]} hxg4 {[%emt 0:00:10]} 31. Bf1 {[%emt 0:01:48]} Kc5 {[%emt 0:03:06]} 32. Bg2 {[%emt 0:03:15]} Kc4 {[%emt 0:00:54]} 33. Re2 {[%emt 0:04:44]} b4 {[%emt 0:08:35]} 34. Bf1 {[%emt 0:04:02]} Kd4 {[%emt 0:07:17]} 35. Rc2 {[%emt 0:02:21]} Bd5 {[%emt 0:03:03]} 36. Rd2+ {[%emt 0:02:39]} Kc5 {[%emt 0:00:05]} 37. Rc2+ {[%emt 0:00:22]} Kb6 {[%emt 0:00:02]} 38. Bc4 {[%emt 0:03:49]} Bxc4 {[%emt 0:03:07]} 39. Rxc4 {[%emt 0:00:05]} Kb5 {[%emt 0:00:48]} 40. Rc2 {[%emt 0:00:10]} Ra3 {[%emt 0:02:22]} 41. Kg2 {[%emt 0:00:30]} Ka4 {[%emt 0:01:25]} 42. Rd2 {[%emt 0:03:25]} Rc3 {[%emt 0:02:32]} 43. Rd8 {[%emt 0:04:29]} Ka3 {[%emt 0:02:00]} 44. Ra8+ {[%emt 0:00:05]} Kb2 {[%emt 0:00:04]} 45. Ra4 {[%emt 0:01:03]} Rc4 {[%emt 0:00:01]} 46. a3 {[%emt 0:00:34]} b5 {[%emt 0:01:03]} 47. Rxb4+ {[%emt 0:00:18]} Rxb4 {[%emt 0:00:12]} 48. axb4 {[%emt 0:00:07]} Kc3 {[%emt 0:00:03]} 49. f3 {[%emt 0:00:14]} gxf3+ {[%emt 0:00:05]} 50. Kxf3 {[%emt 0:00:05]} Kxb4 {[%emt 0:00:15]} 51. g4 {[%emt 0:00:03]} fxg4+ {[%emt 0:00:12]} 52. Kxg4 {[%emt 0:00:04]} Kc4 {[%emt 0:00:27]} 53. f5 {[%emt 0:00:10]} Kd5 {[%emt 0:00:42]} 54. f6 {[%emt 0:01:32]} Ke6 {[%emt 0:00:04]} 55. Kf4 {[%emt 0:00:07]} Kxf6 {[%emt 0:00:34]} 56. Ke4 {[%emt 0:16:30] Ke5+} 1/2-1/2

[Event "I Torneo de Maestras 2019"]
[Site "Corralejo"]
[Date "2019.09.27"]
[Round "9.2"]
[White "Safranska, Anda"]
[Black "Navrotescu, Andreea-Cristiana"]
[Result "1/2-1/2"]
[ECO "C00"]
[WhiteElo "2139"]
[BlackElo "2242"]
[Annotator "NA"]
[PlyCount "95"]
[EventDate "2019.09.21"]
[EventType "tourn"]
[EventCountry "ESP"]
[SourceTitle "playchess.com"]
[Source "ChessBase"]
[SourceQuality "1"]
[TimeControl "5400+30"]

1. e4 {[%emt 0:00:00]} e6 {[%emt 0:00:00]} 2. Qe2 {[%emt 0:00:52]} c5 {[%emt 0:00:40]} 3. g3 {[%emt 0:00:24]} Nc6 {[%emt 0:00:17]} 4. Bg2 {[%emt 0:00:05]} e5 {[%emt 0:01:28]} 5. c3 {[%emt 0:00:14]} d6 {[%emt 0:00:58]} 6. d3 {[%emt 0:00:33]} Nf6 {[%emt 0:00:48]} 7. Nf3 {[%emt 0:01:02]} Be7 {[%emt 0:00:19]} 8. O-O {[%emt 0:00:11]} O-O {[%emt 0:00:18]} 9. a3 {[%emt 0:00:09]} h6 {[%emt 0:04:20]} 10. b4 {[%emt 0:03:24]} a6 {[%emt 0:02:00]} 11. Nbd2 {[%emt 0:00:58]} Re8 {[%emt 0:02:14]} 12. Re1 {[%emt 0:01:01]} Bf8 {[%emt 0:01:49]} 13. Rb1 {[%emt 0:01:41]} b5 {[%emt 0:02:14]} 14. Nf1 {[%emt 0:07:01]} d5 {[%emt 0:14:35]} 15. exd5 {[%emt 0:10:04]} Nxd5 {[%emt 0:05:04]} 16. Bb2 {[%emt 0:01:06]} cxb4 {[%emt 0:04:16]} 17. axb4 {[%emt 0:00:39]} Ra7 {[%emt 0:04:19]} 18. N3d2 {[%emt 0:01:21]} Bf5 {[%emt 0:11:50]} 19. Ne4 {[%emt 0:04:06]} Bg6 {[%emt 0:10:10]} 20. Rbd1 {[%emt 0:01:45]} f5 {[%emt 0:08:42]} 21. Ned2 {[%emt 0:01:05]} Rc7 {[%emt 0:02:21]} 22. Ra1 {[%emt 0:03:23]} Nb8 {[%emt 0:00:54]} 23. Rac1 {[%emt 0:10:09]} Nb6 {[%emt 0:01:03]} 24. Nb1 {[%emt 0:04:08]} Rd7 {[%emt 0:00:55]} 25. Rcd1 {[%emt 0:02:21]} Bf7 {[%emt 0:00:20]} 26. Ne3 {[%emt 0:03:42]} g6 {[%emt 0:02:32]} 27. Qc2 {[%emt 0:08:39]} Rc7 {[%emt 0:00:27]} 28. Qe2 {[%emt 0:01:00]} N8d7 {[%emt 0:00:29]} 29. f4 {[%emt 0:06:27]} exf4 {[%emt 0:00:24]} 30. gxf4 {[%emt 0:00:05]} Qh4 {[%emt 0:01:58]} 31. Qf2 {[%emt 0:00:24]} Qxf2+ {[%emt 0:00:17]} 32. Kxf2 {[%emt 0:00:06]} Bd6 {[%emt 0:00:48]} 33. Kg3 {[%emt 0:03:29]} Nf6 {[%emt 0:00:14]} 34. Bf3 {[%emt 0:00:19]} Rce7 {[%emt 0:02:05]} 35. Bc1 {[%emt 0:00:18]} g5 {[%emt 0:02:59]} 36. Ng2 {[%emt 0:00:51]} Nbd5 {[%emt 0:01:53]} 37. Kf2 {[%emt 0:01:36]} Nxf4 {[%emt 0:05:46]} 38. Nxf4 {[%emt 0:00:40]} gxf4 {[%emt 0:01:36]} 39. Rxe7 {[%emt 0:03:48]} Rxe7 {[%emt 0:00:02]} 40. h3 {[%emt 0:00:17]} Bb3 {[%emt 0:02:19]} 41. Rg1+ {[%emt 0:00:33]} Kf7 {[%emt 0:00:50]} 42. Na3 {[%emt 0:00:54]} Ba4 {[%emt 0:02:37]} 43. Bd2 {[%emt 0:00:43]} Bb8 {[%emt 0:01:02]} 44. Ra1 {[%emt 0:00:26]} Rd7 {[%emt 0:00:24]} 45. Ke2 {[%emt 0:00:55]} Re7+ {[%emt 0:00:18]} 46. Kf2 {[%emt 0:00:39]} Rd7 {[%emt 0:00:01]} 47. Ke2 {[%emt 0:00:10]} Re7+ {[%emt 0:01:37]} 48. Kf2 {[%emt 0:00:25]} 1/2-1/2